bitfinex/quotes_BTCUSD_20251231
["timestamp","ask_amount","ask_price","bid_price","bid_amount"]
[1767203562265,0.01144,87712.0,87691.0,0.19986549]
[1767203562647,0.41459206,87710.0,87691.0,0.19986549]
[1767203563281,0.01144,87712.0,87710.0,0.000549]
[1767203563490,0.01144,87712.0,87700.0,0.19986549]
[1767203563668,0.01144,87712.0,87711.0,0.4]
[1767203566667,0.00055,87711.0,87704.0,0.19986549]
[1767203566880,0.01144,87712.0,87704.0,0.19986549]
[1767203567522,0.01144,87712.0,87704.0,0.21985204]
[1767203567741,0.01144,87712.0,87711.0,0.4]
[1767203568157,0.01144,87712.0,87711.0,0.39945]
[1767203568357,0.15,87715.0,87711.0,0.39945]
[1767203568358,0.16144,87715.0,87711.0,0.39945]
[1767203568555,0.16144,87715.0,87706.0,0.19986549]
[1767203568958,0.16144,87715.0,87704.0,0.01998655]
[1767203568959,0.16144,87715.0,87714.0,0.4]
[1767203569165,0.16144,87715.0,87701.0,0.19986549]
[1767203569618,0.41459206,87711.0,87701.0,0.19986549]
[1767203570119,0.41459206,87711.0,87710.0,0.4]
[1767203570261,0.16144,87715.0,87710.0,0.4]
[1767203570463,0.16144,87715.0,87701.0,0.19986549]
[1767203571565,0.01064203,87714.0,87701.0,0.19986549]
[1767203571770,0.41459206,87711.0,87701.0,0.19986549]
[1767203573348,0.16144,87715.0,87701.0,0.19986549]
[1767203573577,0.41459206,87711.0,87701.0,0.19986549]
[1767203573735,0.41459206,87711.0,87710.0,0.4]
[1767203573936,0.01064827,87711.0,87710.0,0.4]
[1767203574638,0.01009927,87711.0,87710.0,0.4]
[1767203576890,0.15,87715.0,87711.0,0.21439129]
[1767203578117,0.15,87715.0,87710.0,0.4]
[1767203578393,0.15,87715.0,87711.0,0.21439129]
[1767203578769,0.15,87715.0,87714.0,0.4]
[1767203580185,0.14945,87715.0,87714.0,0.4]
[1767203580366,0.25988224,87720.0,87714.0,0.46143913]
[1767203580554,0.03482074,87720.0,87715.0,0.21439129]
[1767203581185,0.03482074,87720.0,87700.0,0.41459206]
[1767203581186,0.2169871,87719.0,87693.0,0.21439129]
[1767203581354,0.2169871,87719.0,87703.0,0.21439129]
[1767203581550,0.4494128,87720.0,87705.0,0.21439129]
[1767203582131,0.03482074,87720.0,87719.0,0.4]
[1767203582337,0.03482074,87720.0,87705.0,0.21439129]
[1767203582693,0.03482074,87720.0,87716.0,0.00024028]
[1767203583281,0.03482074,87720.0,87719.0,0.4]
[1767203583680,0.03372174,87720.0,87719.0,0.4]
[1767203584542,0.03372174,87720.0,87719.0,0.399451]
[1767203588826,0.04441616,87720.0,87719.0,0.399451]
[1767203589519,0.04441616,87720.0,87716.0,0.00024028]
[1767203589722,0.01069442,87719.0,87716.0,0.00024028]
[1767203589939,0.01014542,87718.0,87716.0,0.00024028]
[1767203590183,0.07983526,87727.0,87716.0,0.21463157]
[1767203590405,0.06843499,87727.0,87726.0,0.4]
[1767203590611,0.06843499,87727.0,87716.0,0.21463157]
[1767203590612,0.01139912,87726.0,87716.0,0.23723873]
[1767203590828,0.01139925,87725.0,87716.0,0.23723873]
[1767203591250,0.06839516,87726.0,87716.0,0.23723873]
[1767203591466,0.06839516,87726.0,87716.0,0.02284744]
[1767203591671,0.01139912,87726.0,87725.0,0.4]
[1767203592216,0.06671804,87727.0,87725.0,0.4]
[1767203592417,0.01139912,87726.0,87716.0,0.02284744]
[1767203592612,0.41392977,87726.0,87716.0,0.02284744]
[1767203592821,0.41392977,87726.0,87725.0,0.4]
[1767203593011,0.009723,87727.0,87725.0,0.4]
[1767203593231,0.0002214,87729.0,87716.0,0.23723873]
[1767203593232,0.0002214,87729.0,87727.0,0.000549]
[1767203593629,0.0002214,87729.0,87728.0,0.4]
[1767203594817,0.05721509,87729.0,87728.0,0.39950087]
[1767203595242,0.41392977,87727.0,87716.0,0.00024028]
[1767203595441,0.08431999,87726.0,87716.0,0.01168028]
[1767203595792,0.07292087,87726.0,87716.0,0.01168028]
[1767203595994,0.01139912,87726.0,87725.0,0.4]
[1767203596200,0.2169871,87727.0,87725.0,0.4]
[1767203596402,0.2169871,87727.0,87716.0,0.01168028]
[1767203596732,0.41392977,87726.0,87716.0,0.01168028]
[1767203596876,0.41392977,87726.0,87725.0,0.4]
[1767203597093,0.2169871,87727.0,87725.0,0.4]
[1767203597302,0.2169871,87727.0,87716.0,0.01168028]
[1767203597479,0.0002214,87729.0,87716.0,0.01168028]
[1767203597687,0.41392977,87726.0,87716.0,0.00024028]
[1767203599750,0.0002214,87729.0,87726.0,0.000549]
[1767203599953,4e-07,87729.0,87726.0,0.22295179]
[1767203600322,0.41392977,87736.0,87726.0,0.22295179]
[1767203600524,0.41403595,87736.0,87726.0,0.22032858]
[1767203600724,0.00010618,87736.0,87726.0,0.22032858]
[1767203600949,0.41403595,87736.0,87726.0,0.22032858]
[1767203601170,0.41403595,87736.0,87717.0,0.22240279]
[1767203601171,0.01139795,87735.0,87717.0,0.22240279]
[1767203601367,0.41392977,87730.0,87717.0,0.22240279]
[1767203602226,0.0106925,87729.0,87717.0,0.22240279]
[1767203602443,0.0106925,87728.0,87717.0,0.22240279]
[1767203602654,0.0106925,87727.0,87717.0,0.22240279]
[1767203602883,0.0103645,87726.0,87717.0,0.22240279]
[1767203603089,0.41392977,87730.0,87726.0,0.00055]
[1767203603348,0.75580078,87736.0,87726.0,0.00055]
[1767203603535,0.75580078,87736.0,87735.0,0.4]
[1767203603536,0.00010618,87736.0,87735.0,0.4]
[1767203606198,0.00089926,87738.0,87736.0,0.22240279]
[1767203606397,0.00095974,87738.0,87736.0,0.22240279]
[1767203606605,0.00095974,87738.0,87727.0,0.22240279]
[1767203606813,0.00095974,87738.0,87737.0,0.4]
[1767203610554,0.0004,87740.0,87737.0,0.4]
[1767203610730,0.0004,87741.0,87727.0,0.22240279]
[1767203610958,0.41392977,87740.0,87729.0,0.22240279]
[1767203611165,0.41392977,87740.0,87739.0,0.4]
[1767203611377,0.0004,87741.0,87739.0,0.62240279]
[1767203611582,0.0004,87741.0,87739.0,0.22240279]
[1767203611999,0.0004,87741.0,87740.0,0.4]
[1767203612426,0.01144,87742.0,87740.0,0.4]
[1767203612427,0.00030302,87742.0,87740.0,0.4]
[1767203612629,0.00030302,87742.0,87740.0,0.22240279]
[1767203613666,0.00030302,87742.0,87741.0,0.62240279]
[1767203614557,0.0004,87744.0,87742.0,0.22240279]
[1767203614754,0.01139692,87743.0,87731.0,0.23384279]
[1767203614958,0.23568598,87739.0,87727.0,6.048e-05]
[1767203615165,0.41392977,87741.0,87738.0,0.4]
[1767203615472,0.01144,87742.0,87727.0,6.048e-05]
[1767203615473,0.01144,87742.0,87732.0,0.22240279]
[1767203615706,0.0106834,87741.0,87732.0,0.22240279]
[1767203615939,0.42536977,87742.0,87732.0,0.22240279]
[1767203616143,0.42536977,87742.0,87740.0,0.4]
[1767203616348,0.02283705,87742.0,87732.0,0.22240279]
[1767203616550,0.42536977,87742.0,87732.0,0.22240279]
[1767203616733,0.06838388,87740.0,87732.0,0.22240279]
[1767203616979,0.06838388,87740.0,87727.0,6.048e-05]
[1767203616980,0.01139782,87736.0,87727.0,6.048e-05]
[1767203617190,0.23568598,87735.0,87727.0,6.048e-05]
[1767203617400,0.47091884,87737.0,87727.0,6.048e-05]
[1767203617612,0.01139782,87736.0,87727.0,6.048e-05]
[1767203617821,0.01139795,87735.0,87727.0,6.048e-05]
[1767203618025,0.02283795,87735.0,87727.0,6.048e-05]
[1767203618238,0.01139808,87734.0,87727.0,6.048e-05]
[1767203618417,0.23568598,87734.0,87727.0,6.048e-05]
[1767203618862,0.24708406,87734.0,87727.0,6.048e-05]
[1767203619067,0.23568598,87734.0,87727.0,6.048e-05]
[1767203619487,0.07982828,87735.0,87727.0,6.048e-05]
[1767203619488,0.29267916,87730.0,87727.0,6.048e-05]
[1767203619670,0.23568598,87729.0,87716.0,0.00024028]
[1767203619924,0.64961575,87726.0,87716.0,0.00034646]
[1767203620359,0.23568598,87726.0,87716.0,0.00034646]
[1767203620560,0.01144,87728.0,87716.0,0.00034646]
[1767203620767,0.01144,87728.0,87717.0,0.22240279]
[1767203622678,0.01144,87728.0,87716.0,0.00034646]
[1767203623099,0.01144,87728.0,87716.0,0.22274925]
[1767203623100,0.00168309,87728.0,87716.0,0.22274925]
[1767203623757,0.00168309,87728.0,87727.0,0.4]
[1767203626323,0.00168309,87728.0,87716.0,0.22274925]
[1767203627046,0.00168309,87728.0,87727.0,0.4]
[1767203627245,0.05699653,87725.0,87716.0,0.22274925]
[1767203627447,0.41392977,87726.0,87716.0,0.00034646]
[1767203627654,0.31477582,87725.0,87716.0,0.00034646]
[1767203627988,0.01069417,87724.0,87716.0,0.00034646]
[1767203628384,0.01069417,87724.0,87723.0,0.4]
[1767203629733,0.01069417,87725.0,87723.0,0.4]
[1767203629942,0.01069417,87724.0,87716.0,0.00034646]
[1767203630091,2.513e-05,87749.0,87723.0,0.24631566]
[1767203630292,0.02213444,87748.0,87731.0,0.24631566]
[1767203630522,0.01069444,87747.0,87732.0,0.24631566]
[1767203630883,2.513e-05,87749.0,87732.0,0.24631566]
[1767203633732,2.513e-05,87749.0,87748.0,0.4]
[1767203637633,2.513e-05,87749.0,87748.0,0.64631566]
[1767203638870,2.513e-05,87749.0,87748.0,0.4]
[1767203639327,2.513e-05,87749.0,87748.0,0.64631566]
[1767203640165,2.513e-05,87749.0,87748.0,0.4]
[1767203640948,0.01184,87755.0,87748.0,0.4]
[1767203640949,0.01038086,87755.0,87749.0,0.24631566]
[1767203641545,0.01038086,87755.0,87754.0,0.4]
[1767203642531,0.02177622,87755.0,87740.0,0.24631566]
[1767203642904,0.41392977,87750.0,87741.0,0.25775566]
[1767203643367,0.41392977,87750.0,87741.0,0.24631566]
[1767203643573,0.41392977,87750.0,87749.0,0.4]
[1767203644465,0.41392977,87750.0,87749.0,0.39995723]
[1767203644635,0.14204031,87753.0,87749.0,0.39995723]
[1767203644838,0.01139549,87754.0,87740.0,0.24642184]
[1767203645048,0.41392977,87750.0,87740.0,0.24642184]
[1767203645258,0.41392977,87750.0,87749.0,0.4]
[1767203645571,0.07875303,87755.0,87749.0,0.4]
[1767203645710,0.01139549,87754.0,87740.0,0.24642184]
[1767203645906,0.41392977,87750.0,87740.0,0.24642184]
[1767203646248,0.41392977,87750.0,87749.0,0.4]
[1767203646452,0.02177622,87755.0,87749.0,0.4]
[1767203646650,0.01139549,87754.0,87740.0,0.24642184]
[1767203646851,0.41392977,87750.0,87740.0,0.24642184]
[1767203647061,0.41392977,87750.0,87749.0,0.4]
[1767203647244,0.0787531,87755.0,87749.0,0.4]
[1767203647437,0.01139549,87754.0,87740.0,0.24642184]
[1767203647642,0.0787531,87755.0,87740.0,0.24642184]
[1767203647843,0.01827208,87757.0,87740.0,0.24642184]
[1767203648046,0.0004,87757.0,87741.0,0.02578618]
[1767203648325,0.0004,87757.0,87742.0,0.24631566]
[1767203652256,0.01139393,87766.0,87748.0,0.24631566]
[1767203652446,0.41392977,87760.0,87748.0,0.24631566]
[1767203652611,0.01144,87761.0,87748.0,0.24631566]
[1767203652814,0.41353641,87760.0,87748.0,0.24631566]
[1767203653025,0.06836905,87759.0,87748.0,0.24631566]
[1767203653188,0.01139484,87759.0,87748.0,0.24631566]
[1767203653388,0.06764642,87758.0,87746.0,0.01144]
[1767203653790,0.15080284,87754.0,87740.0,0.00010618]
[1767203653970,0.41353641,87750.0,87740.0,0.00010618]
[1767203654710,0.56433925,87750.0,87749.0,0.4]
[1767203654935,0.15080284,87750.0,87740.0,0.00010618]
[1767203655471,0.56433925,87750.0,87740.0,0.00010618]
[1767203655856,0.15080284,87750.0,87749.0,0.4]
[1767203656058,0.17614329,87750.0,87749.0,0.4]
[1767203656524,0.17614329,87750.0,87749.0,0.39901056]
[1767203657086,0.18682265,87750.0,87749.0,0.39901056]
[1767203657461,0.0113964,87747.0,87740.0,0.00010618]
[1767203657665,0.16430268,87746.0,87740.0,0.00010618]
[1767203657864,0.15290615,87746.0,87740.0,0.00010618]
[1767203658396,0.15290615,87746.0,87745.0,0.4]
[1767203659156,0.16359653,87746.0,87745.0,0.4]
[1767203659535,0.17503653,87746.0,87745.0,0.4]
[1767203660636,0.1750408,87746.0,87745.0,0.4]
[1767203660841,0.02213465,87746.0,87745.0,0.4]
[1767203661037,0.04163299,87746.0,87745.0,0.4]
[1767203663547,0.02213465,87746.0,87745.0,0.4]
[1767203664852,0.02163465,87746.0,87745.0,0.4]
[1767203665083,0.01094,87746.0,87745.0,0.4]
[1767203665968,0.01144,87747.0,87745.0,0.64395285]
[1767203666162,0.01787259,87757.0,87741.0,0.24395285]
[1767203666386,0.01069592,87756.0,87741.0,0.24395285]
[1767203666595,0.15022368,87751.0,87741.0,0.24395285]
[1767203666798,0.01069592,87750.0,87741.0,0.24395285]
[1767203667157,0.15022368,87751.0,87749.0,0.4]
[1767203667365,0.01069604,87750.0,87749.0,0.4]
[1767203667663,0.01069604,87750.0,87741.0,0.24395285]
[1767203667864,0.41353641,87751.0,87741.0,0.24395285]
[1767203667996,0.01069604,87750.0,87749.0,0.4]
[1767203670464,0.01787259,87757.0,87749.0,0.4]
[1767203670660,0.04735846,87757.0,87741.0,0.24395285]
[1767203670860,0.41353641,87751.0,87741.0,0.24395285]
[1767203671070,0.41353641,87751.0,87750.0,0.4]
[1767203671277,0.04735846,87757.0,87741.0,0.24395285]
[1767203671472,0.02948587,87757.0,87741.0,0.24395285]
[1767203671794,0.01069618,87756.0,87741.0,0.24395285]
[1767203672085,0.01069618,87755.0,87741.0,0.24395285]
[1767203672286,0.01069618,87754.0,87741.0,0.24395285]
[1767203672464,0.01069618,87753.0,87741.0,0.24395285]
[1767203672672,0.01069618,87752.0,87741.0,0.24395285]
[1767203672874,0.01069618,87751.0,87741.0,0.24395285]
[1767203673093,0.01069618,87750.0,87741.0,0.24395285]
[1767203673294,0.02948587,87757.0,87750.0,0.000549]
[1767203673492,0.01069657,87756.0,87741.0,0.24395285]
[1767203673674,0.01069657,87755.0,87741.0,0.24395285]
[1767203673875,0.01069657,87754.0,87741.0,0.24395285]
[1767203674101,0.01069657,87753.0,87741.0,0.24395285]
[1767203674321,6.79e-05,87745.0,87741.0,0.24395285]
[1767203674521,9e-07,87745.0,87741.0,0.24395285]
[1767203674676,9e-07,87745.0,87744.0,0.64395285]
[1767203674881,9e-07,87745.0,87744.0,0.4]
[1767203675705,9e-07,87745.0,87744.0,0.64395285]
[1767203679773,9e-07,87745.0,87744.0,0.4]
[1767203680750,0.0106992,87745.0,87740.0,0.00010618]
[1767203680959,9e-07,87745.0,87740.0,0.00010618]
[1767203681582,9e-07,87745.0,87744.0,0.4]
[1767203681782,9e-07,87745.0,87744.0,0.39995723]
[1767203684363,0.01835887,87745.0,87740.0,0.00010618]
[1767203684574,0.01070081,87744.0,87740.0,0.00010618]
[1767203684761,0.00085844,87743.0,87740.0,6.342e-05]
[1767203685011,0.05697699,87755.0,87743.0,0.000549]
[1767203685227,0.01144,87754.0,87744.0,0.24395285]
[1767203685431,0.0798131,87754.0,87740.0,6.342e-05]
[1767203685623,0.41353641,87750.0,87740.0,0.24401627]
[1767203685777,0.01139562,87753.0,87749.0,0.4]
[1767203685981,0.01139562,87753.0,87749.0,0.39901057]
[1767203686188,0.01139562,87753.0,87740.0,0.24401627]
[1767203686372,0.01144,87754.0,87740.0,0.24401627]
[1767203686669,0.02283549,87754.0,87753.0,0.4]
[1767203686874,0.07981315,87754.0,87740.0,0.24401627]
[1767203687186,0.02283549,87754.0,87740.0,0.24401627]
[1767203687367,0.41353641,87750.0,87740.0,0.24401627]
[1767203687781,0.01139536,87755.0,87749.0,0.4]
[1767203687981,0.01144,87754.0,87749.0,0.39901058]
[1767203688204,0.00894,87754.0,87740.0,0.26843714]
[1767203688385,0.02033549,87754.0,87740.0,0.26843714]
[1767203688588,0.00894,87754.0,87740.0,0.24401627]
[1767203690207,0.02033549,87754.0,87740.0,0.24401627]
[1767203690417,0.01139562,87753.0,87740.0,0.24401627]
[1767203690842,0.00894,87754.0,87740.0,0.24401627]
[1767203691058,0.41353641,87750.0,87740.0,0.24401627]
[1767203691885,0.02926778,87759.0,87750.0,0.000549]
[1767203691886,0.01787294,87759.0,87750.0,0.000549]
[1767203692175,0.01144,87758.0,87751.0,0.26682828]
[1767203692378,0.0113951,87757.0,87751.0,0.26682828]
[1767203692669,0.0113951,87757.0,87745.0,0.26682828]
[1767203692670,0.05697612,87757.0,87745.0,0.26682828]
[1767203692872,0.06837122,87757.0,87745.0,0.26682828]
[1767203693043,0.01139523,87756.0,87745.0,0.26682828]
[1767203693251,0.06837122,87757.0,87745.0,0.26682828]
[1767203693423,0.49894401,87755.0,87740.0,6.342e-05]
[1767203693639,0.41353641,87750.0,87740.0,0.2668917]
[1767203693826,0.41353641,87750.0,87749.0,0.4]
[1767203694050,0.0854076,87755.0,87749.0,0.4]
[1767203694254,0.10567589,87754.0,87749.0,0.4]
[1767203694467,0.10567589,87754.0,87740.0,0.2668917]
[1767203694670,0.41353641,87750.0,87740.0,0.2668917]
[1767203694846,0.41353641,87750.0,87749.0,0.4]
[1767203695057,0.02526364,87753.0,87749.0,0.38901951]
[1767203695304,0.0583999,87753.0,87740.0,0.2668917]
[1767203695507,0.41353641,87750.0,87740.0,0.2668917]
[1767203696115,0.41353641,87750.0,87749.0,0.4]
[1767203696311,0.0583999,87753.0,87749.0,0.4]
[1767203696514,0.04700428,87753.0,87740.0,0.2668917]
[1767203696880,0.04700428,87753.0,87752.0,0.4]
[1767203697081,0.0245679,87753.0,87752.0,0.4]
[1767203697948,0.081546,87753.0,87752.0,0.4]
[1767203698191,0.01139627,87748.0,87734.0,0.26140207]
[1767203698364,0.02213988,87747.0,87734.0,0.26140207]
[1767203698568,0.02209641,87746.0,87734.0,0.26140207]
[1767203698798,0.02209641,87746.0,87731.0,0.01144]
[1767203698799,0.41353641,87744.0,87731.0,0.01144]
[1767203698912,0.41353641,87741.0,87731.0,0.01144]
[1767203699123,0.01069988,87740.0,87729.0,0.26682828]
[1767203699326,0.42423629,87740.0,87729.0,0.26682828]
[1767203699577,0.47227113,87740.0,87729.0,0.26682828]
[1767203700392,0.41353641,87740.0,87729.0,0.26682828]
[1767203700549,0.41353641,87740.0,87722.0,0.04088612]
[1767203700550,0.02214011,87739.0,87727.0,0.03070917]
[1767203700773,0.0107004,87738.0,87725.0,0.29776855]
[1767203700949,0.01144,87739.0,87725.0,0.29776855]
[1767203701160,0.01069902,87738.0,87725.0,0.29776855]
[1767203701354,0.05154546,87737.0,87725.0,0.29776855]
[1767203702385,0.05154546,87737.0,87725.0,0.26705938]
[1767203703678,0.05154546,87737.0,87736.0,0.4]
[1767203704851,0.01144,87739.0,87736.0,0.4]
[1767203705087,0.01069628,87738.0,87725.0,0.26705938]
[1767203705350,0.01144,87739.0,87725.0,0.26705938]
[1767203705548,0.01144,87739.0,87738.0,0.4]
[1767203705790,0.02213561,87739.0,87738.0,0.4]
[1767203706390,0.1327388,87739.0,87738.0,0.4]
[1767203706606,0.189726,87739.0,87738.0,0.4]
[1767203706772,0.1327388,87739.0,87738.0,0.4]
[1767203707592,0.189726,87739.0,87738.0,0.4]
[1767203710509,0.02949716,87735.0,87725.0,0.0002311]
[1767203710715,0.02209369,87734.0,87725.0,0.0002311]
[1767203711069,0.01069561,87733.0,87725.0,0.0002311]
[1767203711372,0.01069561,87732.0,87725.0,0.0002311]
[1767203711535,0.44303357,87735.0,87725.0,0.0002311]
[1767203711734,0.11687148,87734.0,87725.0,0.0002311]
[1767203711942,0.01069445,87733.0,87725.0,0.0002311]
[1767203712272,0.01069445,87732.0,87725.0,0.0002311]
[1767203712433,0.01144,87731.0,87725.0,0.0002311]
[1767203713652,0.01069243,87730.0,87725.0,0.0002311]
[1767203713854,0.01144,87731.0,87729.0,0.4]
[1767203714055,0.01069262,87730.0,87725.0,0.0002311]
[1767203714273,0.01144,87731.0,87725.0,0.0002311]
[1767203714478,0.01069152,87730.0,87725.0,0.0002311]
[1767203714699,0.01144,87731.0,87725.0,0.0002311]
[1767203715018,0.07092169,87730.0,87725.0,0.0002311]
[1767203715345,0.07037269,87730.0,87725.0,0.26705938]
[1767203715547,0.07037269,87730.0,87729.0,0.4]
[1767203715879,0.01144,87731.0,87729.0,0.4]
[1767203717917,0.01144,87731.0,87729.0,0.39995601]
[1767203719265,0.01089,87730.0,87729.0,0.66693968]
[1767203719460,0.01144,87730.0,87729.0,0.66693968]
[1767203719718,0.01144,87730.0,87729.0,0.39995601]
[1767203719946,0.01144,87730.0,87729.0,0.67328636]
[1767203723161,0.01144,87730.0,87729.0,0.39995601]
[1767203723304,0.01144,87730.0,87729.0,0.39952511]
[1767203724734,0.03310091,87730.0,87724.0,0.0001527]
[1767203725044,0.01068966,87729.0,87724.0,7e-07]
[1767203725191,0.02208839,87729.0,87724.0,7e-07]
[1767203725427,0.01068966,87728.0,87724.0,7e-07]
[1767203725592,0.09407581,87728.0,87727.0,0.4]
[1767203725833,0.09407646,87728.0,87727.0,0.399602]
[1767203727594,0.01069031,87728.0,87727.0,0.399602]
[1767203729292,0.01139899,87727.0,87724.0,7e-07]
[1767203729445,0.02208943,87726.0,87714.0,0.0001527]
[1767203729647,0.01139977,87721.0,87714.0,0.0001527]
[1767203729860,0.02213031,87720.0,87714.0,0.0001527]
[1767203730059,0.01069031,87719.0,87714.0,0.0001527]
[1767203730259,0.01069031,87719.0,87718.0,0.4]
[1767203730464,0.01069031,87719.0,87714.0,0.0001527]
[1767203730465,0.05700229,87716.0,87714.0,0.0001527]
[1767203730685,0.01140029,87717.0,87716.0,0.000549]
[1767203730882,0.02209259,87717.0,87714.0,0.0001527]
[1767203731061,0.0106923,87716.0,87714.0,0.0001527]
[1767203731263,0.02316541,87715.0,87714.0,0.0001527]
[1767203731470,0.01247311,87715.0,87714.0,0.0001527]
[1767203732786,0.01140016,87718.0,87715.0,0.000493]
[1767203732990,0.01140016,87718.0,87714.0,0.0001527]
[1767203732991,0.01144,87720.0,87714.0,0.0001527]
[1767203733784,0.01144,87720.0,87719.0,0.4]
[1767203733986,0.02212638,87720.0,87719.0,0.4]
[1767203734208,0.06488416,87720.0,87719.0,0.4]
[1767203734929,0.06845663,87719.0,87714.0,0.0001527]
[1767203735176,0.02208654,87718.0,87714.0,0.0001527]
[1767203735330,0.01140016,87718.0,87714.0,0.0001527]
[1767203735852,0.01140016,87718.0,87717.0,0.4]
[1767203736051,0.01068573,87718.0,87717.0,0.399944]
[1767203736598,0.06768657,87718.0,87717.0,0.399944]
[1767203736799,0.06840178,87717.0,87714.0,0.0001527]
[1767203737007,0.01068564,87716.0,87714.0,0.0001527]
[1767203737203,0.01068564,87715.0,87714.0,0.0001527]
[1767203737445,0.01140029,87717.0,87714.0,0.0001527]
[1767203737649,0.01068525,87716.0,87714.0,0.0001527]
[1767203737845,0.06733372,87715.0,87714.0,0.0001527]
[1767203738329,0.06733372,87715.0,87714.0,0.4001527]
[1767203739542,0.01068525,87715.0,87714.0,0.4001527]
[1767203739928,0.01068525,87716.0,87714.0,0.4001527]
[1767203740134,0.01068525,87716.0,87714.0,0.0001527]
[1767203740832,0.01068525,87715.0,87714.0,0.0001527]
[1767203741049,0.02208554,87717.0,87714.0,0.0001527]
[1767203741257,0.01068525,87716.0,87714.0,0.0001527]
[1767203744116,0.01068525,87716.0,87715.0,0.4]
[1767203744322,0.01013525,87716.0,87715.0,0.67333035]
[1767203744556,0.01144,87720.0,87714.0,0.0001527]
[1767203744557,0.01140003,87719.0,87714.0,0.0001527]
[1767203744692,0.01144,87720.0,87714.0,0.0001527]
[1767203744912,0.01140016,87718.0,87714.0,0.0001527]
[1767203745112,0.0684019,87717.0,87714.0,0.0001527]
[1767203745319,0.05700238,87716.0,87714.0,0.0001527]
[1767203745537,0.05700238,87716.0,87715.0,0.4]
[1767203745885,0.01140107,87711.0,87708.0,0.27333035]
[1767203746059,0.06840178,87717.0,87708.0,0.26779203]
[1767203746202,0.06844241,87716.0,87708.0,0.26779203]
[1767203746587,0.01140055,87715.0,87708.0,0.26779203]
[1767203746861,0.06840495,87713.0,87701.0,0.27333035]
[1767203747031,0.06840495,87713.0,87705.0,0.00020913]
[1767203747234,0.57546023,87715.0,87705.0,0.00020913]
[1767203747420,0.06840526,87713.0,87705.0,0.00020913]
[1767203747616,0.06097027,87712.0,87705.0,0.00020913]
[1767203748066,0.06840646,87711.0,87705.0,0.00020913]
[1767203748275,0.01140133,87709.0,87705.0,0.00020913]
[1767203748485,0.07984956,87708.0,87705.0,1e-08]
[1767203748696,0.07984956,87708.0,87695.0,0.27333035]
[1767203748697,0.07984956,87708.0,87702.0,0.1]
[1767203748698,0.01140198,87704.0,87702.0,0.1]
[1767203748896,0.06841223,87704.0,87702.0,0.1]
[1767203749316,0.22803466,87706.0,87686.0,0.27333035]
[1767203749512,0.41392857,87696.0,87686.0,0.27368477]
[1767203749714,0.08337695,87695.0,87686.0,0.27368477]
[1767203749932,0.41392857,87696.0,87686.0,0.27368477]
[1767203752717,0.01140263,87699.0,87686.0,0.27368477]
[1767203752919,0.41392857,87696.0,87686.0,0.27368477]
[1767203754667,0.01140341,87693.0,87686.0,0.27368477]
[1767203754831,0.04481376,87692.0,87686.0,0.27368477]
[1767203758210,0.42533159,87696.0,87686.0,0.27368477]
[1767203758428,0.01067982,87695.0,87686.0,0.27368477]
[1767203758560,0.01067982,87694.0,87686.0,0.27368477]
[1767203758755,0.48234688,87696.0,87686.0,0.27368477]
[1767203758962,0.01012971,87695.0,87687.0,0.29791836]
[1767203759223,0.42536857,87700.0,87687.0,0.29791836]
[1767203759400,0.50537111,87700.0,87687.0,0.29791836]
[1767203761637,0.09144254,87700.0,87687.0,0.29791836]
[1767203761834,0.41392857,87697.0,87687.0,0.29791836]
[1767203762382,0.01140302,87696.0,87687.0,0.29791836]
[1767203762638,0.01140302,87696.0,87686.0,0.00035442]
[1767203762639,0.01140367,87691.0,87686.0,0.00035442]
[1767203762934,0.0684229,87690.0,87686.0,4.2e-07]
[1767203763641,0.06842169,87692.0,87686.0,4.2e-07]
[1767203764022,0.01140367,87691.0,87686.0,4.2e-07]
[1767203764220,0.0114038,87690.0,87686.0,4.2e-07]
[1767203764818,0.04341462,87689.0,87686.0,4.2e-07]
[1767203765013,0.05701921,87690.0,87686.0,4.2e-07]
[1767203765215,0.06842301,87690.0,87686.0,4.2e-07]
[1767203765468,0.09459839,87689.0,87686.0,4.2e-07]
[1767203766886,0.10600232,87689.0,87686.0,4.2e-07]
[1767203767087,0.09459839,87689.0,87686.0,4.2e-07]
[1767203767638,0.10600232,87689.0,87686.0,4.2e-07]
[1767203767834,0.10600232,87689.0,87680.0,0.29808666]
[1767203767835,0.09459839,87689.0,87680.0,0.29808666]
[1767203768077,0.0626654,87688.0,87680.0,0.29819288]
[1767203768900,0.41392857,87690.0,87680.0,0.29819288]
[1767203769451,0.42533237,87690.0,87680.0,0.29819288]
[1767203770494,0.01140393,87689.0,87680.0,0.29819288]
[1767203770730,0.42533237,87690.0,87680.0,0.29819288]
[1767203770891,0.41392857,87690.0,87680.0,0.29819288]
[1767203771092,0.01067979,87689.0,87680.0,0.29819288]
[1767203771343,0.07873555,87688.0,87680.0,0.29819288]
[1767203773717,0.41392857,87683.0,87673.0,0.30250518]
[1767203773938,0.01144,87685.0,87673.0,0.30250518]
[1767203774148,0.41392857,87683.0,87673.0,0.30250518]
[1767203774609,0.41438013,87683.0,87673.0,0.30250518]
[1767203775257,0.00010616,87685.0,87673.0,0.30250518]
[1767203775435,0.41438013,87683.0,87673.0,0.30250518]
[1767203775679,0.00010616,87685.0,87673.0,0.30250518]
[1767203775899,0.41438013,87683.0,87673.0,0.30250518]
[1767203777201,0.01995079,87682.0,87673.0,0.30250518]
[1767203778047,0.41438013,87683.0,87673.0,0.30250518]
[1767203780508,0.41438013,87690.0,87683.0,0.00055]
[1767203780740,0.02214032,87689.0,87683.0,0.29653053]
[1767203780969,0.01070032,87688.0,87683.0,0.29653053]
[1767203781232,0.01070032,87687.0,87683.0,0.29598053]
[1767203781447,0.01070032,87686.0,87683.0,0.29598053]
[1767203781650,0.01070032,87685.0,87683.0,0.29598053]
[1767203781857,0.01144,87689.0,87686.0,0.29598053]
[1767203782056,0.01070139,87688.0,87686.0,0.29598053]
[1767203782255,0.01070139,87687.0,87686.0,0.29598053]
[1767203782470,0.01788415,87696.0,87674.0,0.29598053]
[1767203782618,0.01788415,87696.0,87682.0,0.29598053]
[1767203782817,0.01788415,87696.0,87684.0,0.29598053]
[1767203783022,0.01788415,87696.0,87684.0,0.30742053]
[1767203784261,0.01144,87699.0,87697.0,0.29598053]
[1767203784798,0.01144,87699.0,87685.0,0.29598053]
[1767203785286,0.01089,87699.0,87685.0,0.29598053]
[1767203786504,0.01089,87699.0,87689.0,0.29598053]
[1767203790635,0.000549,87689.0,87688.0,0.4]
[1767203791187,0.05392977,87698.0,87688.0,0.4]
[1767203791372,0.04252701,87698.0,87688.0,0.4]
[1767203791526,0.15131034,87698.0,87688.0,0.4]
[1767203791725,0.09738057,87698.0,87688.0,0.39945]
[1767203792869,0.10878333,87698.0,87688.0,0.38795917]